fUSD/lending_fUSD_20260610
["ID","MTS","AMOUNT","RATE_DAILY","PERIOD"]
[424706566,1781065839000,-500.0,0.00013698,2]
[424706570,1781065839000,-1500.0,0.00013778,2]
[424706567,1781065839000,-500.0,0.00013698,2]
[424706572,1781065839000,-210.0,0.00013898,2]
[424706574,1781065839000,-160.0,0.000139,2]
[424706589,1781065839000,-4105.12508515,0.00014419,2]
[424706569,1781065839000,-395.62798355,0.00013698,2]
[424706576,1781065839000,-166.66,0.00013915,2]
[424706565,1781065839000,-574.57860626,0.00013698,2]
[424706577,1781065839000,-4105.12508515,0.00013937,2]
[424706613,1781065839000,-500.0,0.00014999,2]
[424706580,1781065839000,-4105.12508515,0.00014178,2]
[424706590,1781065839000,-311.21557548,0.00014585,2]
[424706581,1781065839000,-166.66,0.00014185,2]
[424706584,1781065839000,-311.21557548,0.00014247,2]
[424706585,1781065839000,-160.04,0.000143,2]
[424706583,1781065839000,-500.0,0.00014241,2]
[424706579,1781065839000,-250.0,0.00014,2]
[424706568,1781065839000,-500.0,0.00013698,2]
[424706617,1781065839000,-500.0,0.00014999,2]
[424706597,1781065839000,-1613.0535,0.00014874,2]
[424706618,1781065839000,-312.12310303,0.00014999,2]
[424706645,1781065839000,-500.0,0.00014999,2]
[424706649,1781065839000,-500.0,0.00014999,2]
[424706654,1781065839000,-500.0,0.00014999,2]
[424706650,1781065839000,-500.0,0.00014999,2]
[424706651,1781065839000,-500.0,0.00014999,2]
[424706648,1781065839000,-500.0,0.00014999,2]
[424706652,1781065839000,-500.0,0.00014999,2]
[424706653,1781065839000,-500.0,0.00014999,2]
[424706656,1781065839000,-500.0,0.00014999,2]
[424706655,1781065839000,-500.0,0.00014999,2]
[424706657,1781065839000,-500.0,0.00014999,2]
[424706647,1781065839000,-500.0,0.00014999,2]
[424706659,1781065839000,-500.0,0.00014999,2]
[424706661,1781065839000,-500.0,0.00014999,2]
[424706663,1781065839000,-2000.0,0.00014999,2]
[424706665,1781065839000,-500.0,0.00014999,2]
[424706662,1781065839000,-500.0,0.00014999,2]
[424706664,1781065839000,-500.0,0.00014999,2]
[424706666,1781065839000,-500.0,0.00014999,2]
[424706668,1781065839000,-500.0,0.00014999,2]
[424706667,1781065839000,-500.0,0.00014999,2]
[424706670,1781065839000,-500.0,0.00014999,2]
[424706669,1781065839000,-500.0,0.00014999,2]
[424706616,1781065839000,-500.0,0.00014999,2]
[424706660,1781065839000,-500.0,0.00014999,2]
[424706646,1781065839000,-500.0,0.00014999,2]
[424706658,1781065839000,-500.0,0.00014999,2]
[424706642,1781065839000,-500.0,0.00014999,2]
[424706620,1781065839000,-500.0,0.00014999,2]
[424706644,1781065839000,-500.0,0.00014999,2]
[424706621,1781065839000,-500.0,0.00014999,2]
[424706619,1781065839000,-420.62659707,0.00014999,2]
[424706622,1781065839000,-500.0,0.00014999,2]
[424706623,1781065839000,-500.0,0.00014999,2]
[424706633,1781065839000,-500.0,0.00014999,2]
[424706632,1781065839000,-500.0,0.00014999,2]
[424706625,1781065839000,-500.0,0.00014999,2]
[424706627,1781065839000,-500.0,0.00014999,2]
[424706626,1781065839000,-500.0,0.00014999,2]
[424706630,1781065839000,-500.0,0.00014999,2]
[424706624,1781065839000,-500.0,0.00014999,2]
[424706629,1781065839000,-500.0,0.00014999,2]
[424706635,1781065839000,-500.0,0.00014999,2]
[424706641,1781065839000,-500.0,0.00014999,2]
[424706643,1781065839000,-500.0,0.00014999,2]
[424706638,1781065839000,-500.0,0.00014999,2]
[424706639,1781065839000,-500.0,0.00014999,2]
[424706637,1781065839000,-500.0,0.00014999,2]
[424706636,1781065839000,-500.0,0.00014999,2]
[424706634,1781065839000,-500.0,0.00014999,2]
[424706628,1781065839000,-500.0,0.00014999,2]
[424706631,1781065839000,-500.0,0.00014999,2]
[424706640,1781065839000,-500.0,0.00014999,2]
[424706688,1781065840000,-500.0,0.00014999,2]
[424706690,1781065840000,-500.0,0.00014999,2]
[424706700,1781065840000,-500.0,0.00014999,2]
[424706699,1781065840000,-500.0,0.00014999,2]
[424706687,1781065840000,-500.0,0.00014999,2]
[424706693,1781065840000,-500.0,0.00014999,2]
[424706697,1781065840000,-500.0,0.00014999,2]
[424706692,1781065840000,-500.0,0.00014999,2]
[424706696,1781065840000,-500.0,0.00014999,2]
[424706694,1781065840000,-500.0,0.00014999,2]
[424706681,1781065840000,-500.0,0.00014999,2]
[424706691,1781065840000,-500.0,0.00014999,2]
[424706685,1781065840000,-500.0,0.00014999,2]
[424706674,1781065840000,-500.0,0.00014999,2]
[424706676,1781065840000,-500.0,0.00014999,2]
[424706682,1781065840000,-500.0,0.00014999,2]
[424706679,1781065840000,-500.0,0.00014999,2]
[424706686,1781065840000,-500.0,0.00014999,2]
[424706678,1781065840000,-500.0,0.00014999,2]
[424706680,1781065840000,-500.0,0.00014999,2]
[424706683,1781065840000,-500.0,0.00014999,2]
[424706677,1781065840000,-500.0,0.00014999,2]
[424706673,1781065840000,-500.0,0.00014999,2]
[424706672,1781065840000,-500.0,0.00014999,2]
[424706671,1781065840000,-500.0,0.00014999,2]
[424706675,1781065840000,-500.0,0.00014999,2]
[424706695,1781065840000,-500.0,0.00014999,2]
[424706684,1781065840000,-500.0,0.00014999,2]
[424706701,1781065840000,-500.0,0.00014999,2]
[424706698,1781065840000,-500.0,0.00014999,2]
[424706706,1781065840000,-500.0,0.00014999,2]
[424706730,1781065840000,-666.0,0.00014999,2]
[424706728,1781065840000,-500.0,0.00014999,2]
[424706703,1781065840000,-500.0,0.00014999,2]
[424706729,1781065840000,-300.0,0.00014999,2]
[424706727,1781065840000,-500.0,0.00014999,2]
[424706726,1781065840000,-500.0,0.00014999,2]
[424706725,1781065840000,-500.0,0.00014999,2]
[424706723,1781065840000,-500.0,0.00014999,2]
[424706724,1781065840000,-422.29993139,0.00014999,2]
[424706722,1781065840000,-500.0,0.00014999,2]
[424706716,1781065840000,-500.0,0.00014999,2]
[424706718,1781065840000,-500.0,0.00014999,2]
[424706721,1781065840000,-500.0,0.00014999,2]
[424706720,1781065840000,-500.0,0.00014999,2]
[424706731,1781065840000,-3658736.05249284,0.00015,2]
[424706713,1781065840000,-500.0,0.00014999,2]
[424706705,1781065840000,-500.0,0.00014999,2]
[424706704,1781065840000,-500.0,0.00014999,2]
[424706702,1781065840000,-500.0,0.00014999,2]
[424706708,1781065840000,-500.0,0.00014999,2]
[424706709,1781065840000,-500.0,0.00014999,2]
[424706712,1781065840000,-500.0,0.00014999,2]
[424706707,1781065840000,-500.0,0.00014999,2]
[424706711,1781065840000,-500.0,0.00014999,2]
[424706714,1781065840000,-500.0,0.00014999,2]
[424706715,1781065840000,-500.0,0.00014999,2]
[424706719,1781065840000,-500.0,0.00014999,2]
[424706710,1781065840000,-500.0,0.00014999,2]
[424706717,1781065840000,-500.0,0.00014999,2]
[424706733,1781065842000,-300.88129494,0.00015,2]
[424706735,1781065843000,-437.35927019,0.000149,2]
[424706738,1781065846000,-1285.8807777,0.000149,2]
[424706744,1781065847000,-2381.88503726,0.000149,2]
[424706749,1781065847000,-1091.55639,0.00015,2]
[424706750,1781065847000,-2568.8379,0.00015,2]
[424706747,1781065847000,-206.34018561,0.00015,2]
[424706751,1781066074000,780.40809713,0.00030136,120]
[424706755,1781066075000,800.0,0.00030136,120]
[424706754,1781066075000,800.0,0.00030136,120]
[424706753,1781066075000,800.0,0.00030136,120]
[424706752,1781066075000,800.0,0.00030136,120]
[424706756,1781066076000,800.0,0.00030136,120]
[424706757,1781066077000,800.0,0.00030136,120]
[424706758,1781066077000,800.0,0.00030136,120]
[424706761,1781066077000,800.0,0.00030136,120]
[424706760,1781066077000,800.0,0.00030136,120]
[424706762,1781066077000,800.0,0.00030136,120]
[424706759,1781066077000,800.0,0.00030136,120]
[424706765,1781066078000,800.0,0.00030136,120]
[424706764,1781066078000,800.0,0.00030136,120]
[424706763,1781066078000,800.0,0.00030136,120]
[424706766,1781066079000,800.0,0.00030136,120]
[424706768,1781066079000,800.0,0.00030136,120]
[424706767,1781066079000,800.0,0.00030136,120]
[424706769,1781066080000,387.00655327,0.00030136,120]
[424706789,1781066766000,569.57464397,0.00030136,120]
[424706791,1781066976000,275.96694311,0.00012408,2]
[424706790,1781066976000,1103.63858158,0.00012408,2]
[424706792,1781066981000,120.66804935,0.00012425,2]
[424706805,1781067032000,-500.0,0.00012697,2]
[424706806,1781067032000,-500.0,0.00012697,2]
[424706804,1781067032000,-500.0,0.00012697,2]
[424706803,1781067032000,-150.0,0.00012697,2]
[424706801,1781067032000,-1231.53752559,0.00012624,2]
[424706802,1781067032000,-310.62050159,0.00012688,2]
[424706800,1781067032000,-160.0,0.00012563,2]
[424706798,1781067032000,-165.534,0.00012542,2]
[424706809,1781067032000,-500.0,0.00012697,2]
[424706796,1781067032000,-166.66,0.00012475,2]
[424706797,1781067032000,-150.0,0.00012508,2]
[424706795,1781067032000,-309.09507255,0.00012442,2]
[424706794,1781067032000,-1070.51045214,0.00012442,2]
[424706793,1781067032000,-1258.93747534,0.00012425,2]
[424706799,1781067032000,-2357.796,0.00012542,2]
[424706811,1781067032000,-571.31722776,0.00012698,2]
[424706808,1781067032000,-500.0,0.00012697,2]
[424706810,1781067032000,-840.99487493,0.00012698,2]
[424706833,1781067032000,-10490.42425741,0.00012698,2]
[424706832,1781067032000,-6991.22576352,0.00012698,2]
[424706830,1781067032000,-3124.62410036,0.00012698,2]
[424706807,1781067032000,-500.0,0.00012697,2]
[424706826,1781067032000,-345.38191605,0.00012698,2]
[424706823,1781067032000,-7474.50282015,0.00012698,2]
[424706820,1781067032000,-603.84235597,0.00012698,2]
[424706829,1781067032000,-53691.4237028,0.00012698,2]
[424706819,1781067032000,-327.86973261,0.00012698,2]
[424706816,1781067032000,-1452.23438033,0.00012698,2]
[424706817,1781067032000,-30205.65057528,0.00012698,2]
[424706815,1781067032000,-2500.0,0.00012698,2]
[424706814,1781067032000,-172.8434,0.00012698,2]
[424706812,1781067032000,-2000.0,0.00012698,2]
[424706813,1781067032000,-250.0,0.00012698,2]
[424706818,1781067032000,-1447.85461755,0.00012698,2]
[424706845,1781067037000,-339.88265974,0.00012698,2]
[424706844,1781067037000,-775.32092544,0.00012698,2]
[424706842,1781067037000,-807.91327417,0.00012698,2]
[424706839,1781067037000,-932.10264588,0.00012698,2]
[424706838,1781067037000,-796.55986639,0.00012698,2]
[424706840,1781067037000,-4963.1132009,0.00012698,2]
[424706841,1781067037000,-2439.21906532,0.00012698,2]
[424706843,1781067037000,-9561.50740717,0.00012698,2]
[424706846,1781067037000,-1363229.34673296,0.00012698,2]
[424706853,1781067037000,-150.0,0.00012861,2]
[424706848,1781067037000,-287.82,0.00012719,2]
[424706849,1781067037000,-266.59289854,0.00012724,7]
[424706851,1781067037000,-166.66,0.00012737,2]
[424706854,1781067037000,-1231.53752554,0.00012877,2]
[424706852,1781067037000,-215.92376884,0.00012849,2]
[424706850,1781067037000,-291.6,0.00012737,2]
[424706855,1781067037000,-2927.94,0.00012893,2]
[424706856,1781067037000,-474.90228029,0.00012905,2]
[424706847,1781067037000,-7078.44,0.00012698,2]
[424706909,1781067038000,-600.0,0.00013722,2]
[424706910,1781067038000,-600.0,0.00013722,2]
[424706907,1781067038000,-600.0,0.00013722,2]
[424706905,1781067038000,-300.0,0.00013722,2]
[424706900,1781067038000,-300.0,0.00013722,2]
[424706887,1781067038000,-500.0,0.00013698,2]
[424706891,1781067038000,-200.0,0.00013699,2]
[424706889,1781067038000,-500.0,0.00013698,2]
[424706920,1781067038000,-448.0,0.00013778,2]
[424706883,1781067038000,-500.0,0.00013698,2]
[424706898,1781067038000,-300.0,0.00013722,2]
[424706914,1781067038000,-444.0,0.00013778,2]
[424706922,1781067038000,-166.66,0.00013788,2]
[424706918,1781067038000,-459.0,0.00013778,2]
[424706916,1781067038000,-451.0,0.00013778,2]
[424706881,1781067038000,-500.0,0.00013698,2]
[424706924,1781067038000,-1231.53752554,0.00013888,2]
[424706931,1781067038000,-158.6,0.00013982,2]
[424706929,1781067038000,-1032.37,0.00013946,2]
[424706935,1781067038000,-840.9948749,0.00014166,2]
[424706926,1781067038000,-840.9948749,0.00013921,2]
[424706937,1781067038000,-488.84225214,0.000142,2]
[424706933,1781067038000,-1231.53752554,0.00014141,2]
[424706940,1781067038000,-399.91275915,0.000142,2]
[424706912,1781067038000,-455.0,0.00013778,2]
[424706884,1781067038000,-500.0,0.00013698,2]
[424706879,1781067038000,-840.9948749,0.00013677,2]
[424706893,1781067038000,-1112.5471825,0.00013699,2]
[424706857,1781067038000,-840.9948749,0.00012943,2]
[424706858,1781067038000,-225.24,0.00012953,2]
[424706860,1781067038000,-166.66,0.00013,2]
[424706859,1781067038000,-2000.0,0.00012994,2]
[424706865,1781067038000,-840.9948749,0.00013187,2]
[424706861,1781067038000,-4194.35,0.00013004,2]
[424706867,1781067038000,-166.66,0.00013262,2]
[424706863,1781067038000,-500.0,0.00013131,2]
[424706864,1781067038000,-8921.96,0.00013158,2]
[424706866,1781067038000,-732.8,0.0001323,2]
[424706862,1781067038000,-1231.53752554,0.0001313,2]
[424706868,1781067038000,-166.68,0.00013264,2]
[424706869,1781067038000,-1032.37,0.00013282,2]
[424706870,1781067038000,-168.95,0.00013282,2]
[424706871,1781067038000,-1231.53752554,0.00013383,2]
[424706878,1781067038000,-1231.53752554,0.00013636,2]
[424706874,1781067038000,-399.88934784,0.00013473,7]
[424706872,1781067038000,-311.21557548,0.0001343,2]
[424706877,1781067038000,-1032.37,0.00013614,2]
[424706873,1781067038000,-840.9948749,0.00013432,2]
[424706876,1781067038000,-166.66,0.00013525,2]
[424706875,1781067038000,-160.54,0.00013479,2]
[424706944,1781067038000,-311.21557548,0.0001433,2]
[424706880,1781067038000,-353.59279344,0.00013698,2]
[424706882,1781067038000,-500.0,0.00013698,2]
[424706895,1781067038000,-300.0,0.00013722,2]
[424706942,1781067038000,-1032.37,0.00014278,2]
[424706903,1781067038000,-300.0,0.00013722,2]
[424706953,1781067038000,-225.24,0.00014573,2]
[424707019,1781067038000,-500.0,0.00014988,2]
[424707015,1781067038000,-16097.5631272,0.00014985,2]
[424707011,1781067038000,-500.0,0.00014984,2]
[424707009,1781067038000,-500.0,0.00014984,2]
[424707017,1781067038000,-500.0,0.00014988,2]
[424707013,1781067038000,-949944.9319987,0.00014985,2]
[424707021,1781067038000,-310.62050159,0.0001499,2]
[424707023,1781067038000,-310.62050159,0.0001499,2]
[424707030,1781067038000,-500.0,0.00014998,2]
[424707034,1781067038000,-500.0,0.00014999,2]
[424707027,1781067038000,-151.0,0.00014997,2]
[424707045,1781067038000,-500.0,0.00014999,2]
[424707007,1781067038000,-500.0,0.00014984,2]
[424707025,1781067038000,-151.0,0.00014997,2]
[424707032,1781067038000,-500.0,0.00014999,2]
[424707041,1781067038000,-500.0,0.00014999,2]
[424707038,1781067038000,-626.7966461,0.00014999,2]
[424707043,1781067038000,-500.0,0.00014999,2]
[424707047,1781067038000,-500.0,0.00014999,2]
[424707049,1781067038000,-500.0,0.00014999,2]
[424707054,1781067038000,-500.0,0.00014999,2]
[424706946,1781067038000,-500.0,0.00014345,2]
[424707057,1781067038000,-500.0,0.00014999,2]
[424707051,1781067038000,-500.0,0.00014999,2]
[424707056,1781067038000,-500.0,0.00014999,2]
[424707058,1781067038000,-500.0,0.00014999,2]
[424707036,1781067038000,-500.0,0.00014999,2]
[424707003,1781067038000,-1231.53752554,0.000149,2]
[424707055,1781067038000,-500.0,0.00014999,2]
[424707005,1781067038000,-500.0,0.00014984,2]
[424707000,1781067038000,-10000.0,0.000149,2]
[424706951,1781067038000,-840.9948749,0.00014411,2]
[424706955,1781067038000,-501.0,0.00014603,2]
[424706957,1781067038000,-1032.37,0.0001461,2]
[424706959,1781067038000,-2000.0,0.00014619,2]
[424706971,1781067038000,-5800.0,0.00014832,2]
[424706969,1781067038000,-2000.0,0.000148,2]
[424706961,1781067038000,-1231.53752554,0.00014647,2]
[424706963,1781067038000,-840.9948749,0.00014655,2]
[424706965,1781067038000,-6579.34637,0.00014668,2]
[424706967,1781067038000,-311.21557548,0.00014703,2]
[424706973,1781067038000,-5800.0,0.00014841,2]
[424706977,1781067038000,-500.0,0.00014849,2]
[424706949,1781067038000,-1231.53752554,0.00014394,2]
[424706983,1781067038000,-5800.0,0.00014866,2]
[424706979,1781067038000,-234545.16555343,0.0001485,2]
[424706998,1781067038000,-5800.0,0.000149,2]
[424706985,1781067038000,-5800.0,0.00014874,2]
[424706987,1781067038000,-5800.0,0.00014883,2]
[424706989,1781067038000,-1361.88324152,0.00014885,2]
[424706995,1781067038000,-5800.0,0.00014891,2]
[424706993,1781067038000,-251.03494238,0.00014885,2]
[424706991,1781067038000,-2618.29389384,0.00014885,2]
[424706975,1781067038000,-5800.0,0.00014849,2]
[424706981,1781067038000,-5800.0,0.00014858,2]
[424707002,1781067038000,-840.9948749,0.000149,2]
[424707087,1781067039000,-500.0,0.00014999,2]
[424707089,1781067039000,-500.0,0.00014999,2]
[424707085,1781067039000,-500.0,0.00014999,2]
[424707086,1781067039000,-500.0,0.00014999,2]
[424707091,1781067039000,-500.0,0.00014999,2]
[424707095,1781067039000,-500.0,0.00014999,2]
[424707092,1781067039000,-500.0,0.00014999,2]
[424707090,1781067039000,-500.0,0.00014999,2]
[424707094,1781067039000,-500.0,0.00014999,2]
[424707088,1781067039000,-500.0,0.00014999,2]
[424707102,1781067039000,-500.0,0.00014999,2]
[424707096,1781067039000,-500.0,0.00014999,2]
[424707097,1781067039000,-500.0,0.00014999,2]
[424707098,1781067039000,-500.0,0.00014999,2]
[424707100,1781067039000,-500.0,0.00014999,2]
[424707099,1781067039000,-500.0,0.00014999,2]
[424707106,1781067039000,-500.0,0.00014999,2]
[424707101,1781067039000,-500.0,0.00014999,2]
[424707105,1781067039000,-500.0,0.00014999,2]
[424707078,1781067039000,-500.0,0.00014999,2]
[424707104,1781067039000,-500.0,0.00014999,2]
[424707093,1781067039000,-500.0,0.00014999,2]
[424707082,1781067039000,-500.0,0.00014999,2]
[424707068,1781067039000,-500.0,0.00014999,2]
[424707081,1781067039000,-500.0,0.00014999,2]
[424707103,1781067039000,-500.0,0.00014999,2]
[424707061,1781067039000,-445.02807872,0.00014999,2]
[424707060,1781067039000,-500.0,0.00014999,2]
[424707059,1781067039000,-500.0,0.00014999,2]
[424707063,1781067039000,-500.0,0.00014999,2]
[424707062,1781067039000,-2000.0,0.00014999,2]
[424707064,1781067039000,-500.0,0.00014999,2]
[424707065,1781067039000,-500.0,0.00014999,2]
[424707066,1781067039000,-500.0,0.00014999,2]
[424707067,1781067039000,-500.0,0.00014999,2]
[424707079,1781067039000,-500.0,0.00014999,2]
[424707070,1781067039000,-500.0,0.00014999,2]
[424707071,1781067039000,-500.0,0.00014999,2]
[424707072,1781067039000,-500.0,0.00014999,2]
[424707080,1781067039000,-500.0,0.00014999,2]
[424707073,1781067039000,-500.0,0.00014999,2]
[424707074,1781067039000,-500.0,0.00014999,2]
[424707083,1781067039000,-500.0,0.00014999,2]
[424707076,1781067039000,-500.0,0.00014999,2]
[424707077,1781067039000,-500.0,0.00014999,2]
[424707075,1781067039000,-500.0,0.00014999,2]
[424707084,1781067039000,-500.0,0.00014999,2]
[424707069,1781067039000,-500.0,0.00014999,2]
[424707107,1781067039000,-500.0,0.00014999,2]
[424707134,1781067039000,-500.0,0.00014999,2]
[424707111,1781067039000,-500.0,0.00014999,2]
[424707137,1781067039000,-500.0,0.00014999,2]
[424707140,1781067039000,-500.0,0.00014999,2]
[424707138,1781067039000,-500.0,0.00014999,2]
[424707142,1781067039000,-500.0,0.00014999,2]
[424707141,1781067039000,-500.0,0.00014999,2]
[424707143,1781067039000,-500.0,0.00014999,2]
[424707145,1781067039000,-500.0,0.00014999,2]
[424707153,1781067039000,-500.0,0.00014999,2]
[424707154,1781067039000,-1069463.22708487,0.00015,2]
[424707155,1781067039000,-172.2,0.00015,2]
[424707144,1781067039000,-500.0,0.00014999,2]
[424707147,1781067039000,-500.0,0.00014999,2]
[424707146,1781067039000,-500.0,0.00014999,2]
[424707149,1781067039000,-500.0,0.00014999,2]
[424707152,1781067039000,-500.0,0.00014999,2]
[424707151,1781067039000,-500.0,0.00014999,2]
[424707156,1781067039000,-56393.41708847,0.00015,2]
[424707158,1781067039000,-24957.9610609,0.00015,2]
[424707157,1781067039000,-5630.45551319,0.00015,2]
[424707159,1781067039000,-5400.0,0.00015,2]
[424707109,1781067039000,-500.0,0.00014999,2]
[424707139,1781067039000,-500.0,0.00014999,2]
[424707136,1781067039000,-500.0,0.00014999,2]
[424707135,1781067039000,-500.0,0.00014999,2]
[424707132,1781067039000,-500.0,0.00014999,2]
[424707110,1781067039000,-500.0,0.00014999,2]
[424707108,1781067039000,-500.0,0.00014999,2]
[424707115,1781067039000,-500.0,0.00014999,2]
[424707112,1781067039000,-500.0,0.00014999,2]
[424707116,1781067039000,-500.0,0.00014999,2]
[424707117,1781067039000,-500.0,0.00014999,2]
[424707114,1781067039000,-500.0,0.00014999,2]
[424707118,1781067039000,-500.0,0.00014999,2]
[424707119,1781067039000,-500.0,0.00014999,2]
[424707160,1781067039000,-1576.94745,0.00015,2]
[424707120,1781067039000,-500.0,0.00014999,2]
[424707121,1781067039000,-500.0,0.00014999,2]
[424707123,1781067039000,-500.0,0.00014999,2]
[424707127,1781067039000,-500.0,0.00014999,2]
[424707126,1781067039000,-500.0,0.00014999,2]
[424707128,1781067039000,-500.0,0.00014999,2]
[424707125,1781067039000,-500.0,0.00014999,2]
[424707124,1781067039000,-500.0,0.00014999,2]
[424707130,1781067039000,-500.0,0.00014999,2]
[424707129,1781067039000,-500.0,0.00014999,2]
[424707131,1781067039000,-500.0,0.00014999,2]
[424707133,1781067039000,-500.0,0.00014999,2]
[424707122,1781067039000,-500.0,0.00014999,2]
[424707167,1781067040000,-1027.29656525,0.00015,2]
[424707162,1781067040000,-13693.67081577,0.00015,2]
[424707163,1781067040000,-819.1209591,0.00015,2]
[424707164,1781067040000,-43729.0654767,0.00015,2]
[424707165,1781067040000,-17486.14102489,0.00015,2]
[424707161,1781067040000,-271.91904257,0.00012598,2]
[424707168,1781067040000,-39625.45481323,0.00015,2]
[424707172,1781067040000,-275.71312193,0.00015,2]
[424707169,1781067040000,-35370.32145251,0.00015,2]
[424707166,1781067040000,-475.80353924,0.00015,2]
[424707170,1781067040000,-136905.20511951,0.00015,2]
[424707171,1781067040000,-3723.38363732,0.00015,2]
[424707183,1781067042000,-9453.3983505,0.00015,2]
[424707182,1781067042000,-500.0,0.00015,2]
[424707180,1781067042000,-2160.59628463,0.00015,2]
[424707181,1781067042000,-6172.35656158,0.00015,2]
[424707179,1781067042000,-341.04,0.00015,2]
[424707188,1781067047000,-6877.85982336,0.00015,2]
[424707186,1781067047000,-271.91904252,0.00012927,2]
[424707189,1781067047000,-4682.51185446,0.00015,2]
[424707191,1781067047000,-1110.9295,0.00015,2]
[424707187,1781067047000,-458.45897056,0.00015,2]
[424707192,1781067047000,-1151.30067516,0.00015,2]
[424707194,1781067047000,-90286.39528637,0.00015,2]
[424707195,1781067047000,-19579.25548105,0.00015,2]
[424707197,1781067047000,-31426.91282622,0.00015,2]
[424707196,1781067047000,-1049.53867975,0.00015,2]
[424707193,1781067047000,-11163.31825447,0.00015,2]
[424707200,1781067048000,-64845.7125,0.00015,2]
[424707199,1781067048000,-4263.6127,0.00015,2]
[424707198,1781067048000,-501.0,0.00015,2]
[424707220,1781067053000,152.0,0.00028509,120]
[424707223,1781067576000,158.58,0.00030082,120]
[424707225,1781067786000,1011.185854,0.0003,120]
[424707229,1781068013000,-150.0,0.00011098,2]
[424707230,1781068013000,-40.35855307,0.00011412,2]
[424707228,1781068013000,-275.81291912,0.0001,2]
[424707231,1781068057000,200.0,0.0003,120]
[424707232,1781068109000,-459.64144693,0.00011412,2]
[424707233,1781068109000,-150.0,0.00011421,2]
[424707234,1781068109000,-604.93066934,0.0001143,2]
[424707259,1781068231000,-312.90311694,0.00011798,2]
[424707243,1781068231000,-150.0,9.875e-05,2]
[424707242,1781068231000,-194.07,9.144e-05,2]
[424707244,1781068231000,-166.66,0.00010959,2]
[424707246,1781068231000,-2927.94,0.00011174,2]
[424707248,1781068231000,-1410.82933066,0.0001143,2]
[424707247,1781068231000,-166.66,0.00011352,2]
[424707249,1781068231000,-760.49,0.00011437,2]
[424707250,1781068231000,-8921.96,0.00011437,2]
[424707245,1781068231000,-166.66,0.00011156,2]
[424707252,1781068231000,-166.66,0.00011549,2]
[424707256,1781068231000,-150.0,0.00011795,2]
[424707255,1781068231000,-1464.85,0.00011795,2]
[424707253,1781068231000,-1624.59,0.00011585,2]
[424707257,1781068231000,-435.74709048,0.00011798,2]
[424707254,1781068231000,-166.66,0.00011746,2]
[424707258,1781068231000,-453.03491756,0.00011798,2]
[424707260,1781068231000,-326.65008553,0.00011798,2]
[424707261,1781068231000,-287.82,0.00011799,2]
[424707251,1781068231000,-203.66,0.00011437,2]
[424707269,1781068232000,-2777.8663373,0.00012277,2]
[424707268,1781068232000,-203.66,0.00012072,2]
[424707267,1781068232000,-168.28,0.00012059,2]
[424707266,1781068232000,-166.66,0.00011943,2]
[424707270,1781068232000,-2242.50364147,0.00012277,2]
[424707264,1781068232000,-376.04,0.0001183,2]
[424707263,1781068232000,-163.65,0.0001183,2]
[424707262,1781068232000,-160.0,0.00011821,2]
[424707265,1781068232000,-150.0,0.00011912,2]